Workbook

Sheet سعيد
A1: سعيد
C2: مبلغ
A3: =SUM(A5:A953) -> 8549 | B3: =SUM(B5:B952) -> 2500 | C3: =SUM(A3-B3) -> 6049
A4: لنا | B4: له | C4: بيان | D4: نوع | E4: عدد | F4: سعر | G4: التاريخ
A5: =SUM(E5*F5) -> 6534 | C5: محمد عبد الكريم | D5: بنطال | E5: 66 | F5: 99
A6: =SUM(E6*F6) -> 2015 | C6: بشير عبدالله حمد | D6: كنزة | E6: 31 | F6: 65
A7: 0 | B7: 2500 | C7: دفعة | E7: 0 | F7: 1
A8: 0 | E8: 0 | F8: 1
A9: 0 | E9: 0 | F9: 1
A10: 0 | E10: 0 | F10: 1
A11: 0 | E11: 0 | F11: 1
A12: 0 | E12: 0 | F12: 1
A13: 0 | E13: 0 | F13: 1
A14: 0 | E14: 0 | F14: 1
A15: 0 | E15: 0 | F15: 1
A16: 0 | E16: 0 | F16: 1
A17: 0 | E17: 0 | F17: 1
A18: 0 | E18: 0 | F18: 1
A19: 0 | E19: 0 | F19: 1
A20: 0 | E20: 0 | F20: 1
A21: 0 | E21: 0 | F21: 1 | G21: =IF(C21="","",IF(G21="",TODAY(),G21)) -> 
A22: 0 | E22: 0 | F22: 1
A23: 0 | E23: 0 | F23: 1
A24: 0 | E24: 0 | F24: 1
A25: 0 | E25: 0 | F25: 1
A26: 0 | E26: 0 | F26: 1
A27: 0 | E27: 0 | F27: 1
A28: 0 | E28: 0 | F28: 1
A29: 0 | E29: 0 | F29: 1
A30: 0 | E30: 0 | F30: 1
A31: 0 | E31: 0 | F31: 1
A32: 0 | E32: 0 | F32: 1
A33: 0 | E33: 0 | F33: 1
A34: 0 | E34: 0 | F34: 1
A35: 0 | E35: 0 | F35: 1

Sheet وليد
A1: وليد
C2: مبلغ
A3: =SUM(A5:A953) -> 7347 | B3: =SUM(B5:B952) -> 3500 | C3: =SUM(A3-B3) -> 3847
A4: لنا | B4: له | C4: بيان | D4: نوع | E4: عدد | F4: سعر | G4: التاريخ
A5: =SUM(E5*F5) -> 5202 | C5: علياء عدنان الغبره | D5: بنطال | E5: 51 | F5: 102
A6: =SUM(E6*F6) -> 2145 | C6: حيان محمد بطين | D6: كنزة | E6: 33 | F6: 65
A7: 0 | B7: 3500 | C7: دفعة | E7: 0 | F7: 1
A8: 0 | E8: 0 | F8: 1
A9: 0 | E9: 0 | F9: 1
A10: 0 | E10: 0 | F10: 1
A11: 0 | E11: 0 | F11: 1
A12: 0 | E12: 0 | F12: 1
A13: 0 | E13: 0 | F13: 1
A14: 0 | E14: 0 | F14: 1
A15: 0 | E15: 0 | F15: 1
A16: 0 | E16: 0 | F16: 1
A17: 0 | E17: 0 | F17: 1
A18: 0 | E18: 0 | F18: 1
A19: 0 | E19: 0 | F19: 1
A20: 0 | E20: 0 | F20: 1
A21: 0 | E21: 0 | F21: 1
A22: 0 | E22: 0 | F22: 1
A23: 0 | E23: 0 | F23: 1
A24: 0 | E24: 0 | F24: 1
A25: 0 | E25: 0 | F25: 1
A26: 0 | E26: 0 | F26: 1
A27: 0 | E27: 0 | F27: 1
A28: 0 | E28: 0 | F28: 1
A29: 0 | E29: 0 | F29: 1
A30: 0 | E30: 0 | F30: 1
A31: 0 | E31: 0 | F31: 1
A32: 0 | E32: 0 | F32: 1
A33: 0 | E33: 0 | F33: 1
A34: 0 | E34: 0 | F34: 1
A35: 0 | E35: 0 | F35: 1

Sheet احمد
A1: احمد
C2: مبلغ
A3: =SUM(A5:A953) -> 24450 | B3: =SUM(B5:B952) -> 15000 | C3: =SUM(A3-B3) -> 9450
A4: لنا | B4: له | C4: بيان | D4: نوع | E4: عدد | F4: سعر | G4: التاريخ
A5: =SUM(E5*F5) -> 19380 | C5: عدنان الأحمد | D5: بنطال | E5: 190 | F5: 102
A6: =SUM(E6*F6) -> 5070 | C6: ربيع حيان محمد | D6: كنزة | E6: 78 | F6: 65
A7: 0 | B7: 15000 | C7: دفعة | E7: 0 | F7: 1
A8: 0 | E8: 0 | F8: 1
A9: 0 | E9: 0 | F9: 1
A10: 0 | E10: 0 | F10: 1
A11: 0 | E11: 0 | F11: 1
A12: 0 | E12: 0 | F12: 1
A13: 0 | E13: 0 | F13: 1
A14: 0 | E14: 0 | F14: 1
A15: 0 | E15: 0 | F15: 1
A16: 0 | E16: 0 | F16: 1
A17: 0 | E17: 0 | F17: 1
A18: 0 | E18: 0 | F18: 1
A19: 0 | E19: 0 | F19: 1
A20: 0 | E20: 0 | F20: 1
A21: 0 | E21: 0 | F21: 1
A22: 0 | E22: 0 | F22: 1
A23: 0 | E23: 0 | F23: 1
A24: 0 | E24: 0 | F24: 1
A25: 0 | E25: 0 | F25: 1 | G25: =IF(C25="","",IF(G25="",TODAY(),G25)) -> 
A26: 0 | E26: 0 | F26: 1
A27: 0 | E27: 0 | F27: 1
A28: 0 | E28: 0 | F28: 1
A29: 0 | E29: 0 | F29: 1
A30: 0 | E30: 0 | F30: 1
A31: 0 | E31: 0 | F31: 1
A32: 0 | E32: 0 | F32: 1
A33: 0 | E33: 0 | F33: 1
A34: 0 | E34: 0 | F34: 1
A35: 0 | E35: 0 | F35: 1

Sheet باسل
A1: باسل
C2: مبلغ
A3: =SUM(A5:A953) -> 2459 | B3: =SUM(B5:B952) -> 1000 | C3: =SUM(A3-B3) -> 1459
A4: لنا | B4: له | C4: بيان | D4: نوع | E4: عدد | F4: سعر | G4: التاريخ
A5: =SUM(E5*F5) -> 1224 | C5: محمد محمد | D5: بنطال | E5: 12 | F5: 102
A6: =SUM(E6*F6) -> 1235 | C6: اياد سليمان | D6: كنزة | E6: 19 | F6: 65
A7: 0 | B7: 1000 | C7: دفعة | E7: 0 | F7: 1
A8: 0 | E8: 0 | F8: 1
A9: 0 | E9: 0 | F9: 1
A10: 0 | E10: 0 | F10: 1
A11: 0 | E11: 0 | F11: 1
A12: 0 | E12: 0 | F12: 1
A13: 0 | E13: 0 | F13: 1
A14: 0 | E14: 0 | F14: 1
A15: 0 | E15: 0 | F15: 1
A16: 0 | E16: 0 | F16: 1
A17: 0 | E17: 0 | F17: 1
A18: 0 | E18: 0 | F18: 1
A19: 0 | E19: 0 | F19: 1
A20: 0 | E20: 0 | F20: 1
A21: 0 | E21: 0 | F21: 1
A22: 0 | E22: 0 | F22: 1
A23: 0 | E23: 0 | F23: 1
A24: 0 | E24: 0 | F24: 1 | G24: =IF(C24="","",IF(G24="",TODAY(),G24)) -> 
A25: 0 | E25: 0 | F25: 1
A26: 0 | E26: 0 | F26: 1
A27: 0 | E27: 0 | F27: 1
A28: 0 | E28: 0 | F28: 1
A29: 0 | E29: 0 | F29: 1
A30: 0 | E30: 0 | F30: 1
A31: 0 | E31: 0 | F31: 1
A32: 0 | E32: 0 | F32: 1
A33: 0 | E33: 0 | F33: 1
A34: 0 | E34: 0 | F34: 1
A35: 0 | E35: 0 | F35: 1

Sheet رصيد
A1: سعيد | D1: 15 | E1: =INDIRECT("A"&D1+1) -> 964700172420 | F1: =INDIRECT("A"&D1) -> احمد | G1: =INDIRECT("A"&D1+3) -> لنا | H1: =INDIRECT("B"&D1+3) -> 9450 | I1: =INDIRECT("B"&D1+5) -> 2022-03-03 | J1: شركة الاتحاد للحديد
A2: 967777777777 | G2: ="الأخ "&F1&" السلام عليكم " -> الأخ احمد السلام عليكم
A3: =============== | G3: =J1&" ترسل لكم هذا الإشعار بخلاصة المبلغ المستحق عليكم حتى تاريخ "&TEXT(I1,"yyyy/mm/dd") -> شركة الاتحاد للحديد ترسل لكم هذا الإشعار بخلاصة المبلغ المستحق عليكم حتى تاريخ 2022/03/03
A4: =IF(B4>=0,"لنا","لكم") -> لنا | B4: =سعيد!C3 -> 6049 | C4: دينار | G4: =" وهو "&H1&" دينار الرجاء تفصلكم بسرعة التسديد " -> وهو 9450 دينار الرجاء تفصلكم بسرعة التسديد
A5: 🔘🔘🔘🔘🔘🔘
B6: =TODAY() -> 2022-03-03 | G6: =G2&G3&G4 -> الأخ احمد السلام عليكم شركة الاتحاد للحديد ترسل لكم هذا الإشعار بخلاصة المبلغ المستحق عليكم حتى تاريخ 2022/03/03 وهو 9450 دينار الرجاء تفصلكم بسرعة التسديد
A8: وليد
A9: 967900531600
A10: ===============
A11: =IF(B11>=0,"لنا","لكم") -> لنا | B11: =وليد!C3 -> 3847 | C11: دينار
A12: 🔘🔘🔘🔘🔘🔘 | F12: ملاحظات :
B13: =TODAY() -> 2022-03-03 | F13: ا1 لدينا هنا أربعة عملاء وحتى نجرب البرنامج فليس من الحكمة أن ترسل لهم رسايل تجريبية لذلك قم بوضع رقم هاتفك في كل خانة من خانات الرقم وهذا يعني أننا سنرسل أربعة رسائل لرقمك ولكن بعبارات مختلفة
F14: ا2 قبل الضغط على زر إرسال تأكد من فتح برنامج الواتس وفتح المتصفح
A15: احمد | F15: ا3 أثناء عملية الإرسال لا تستخدم الحاسوب نهائيا حتى يتم الارسال
A16: 964700172420 | F16: ا4 ربما تحتاج في بعض الأحيان إلى إرسال رسالة واحدة فقط او اثنتين فيمكن تطوير البرنامج فيما بعد إذا نجحت هذه الفكرة أولا
A17: ===============
A18: =IF(B18>=0,"لنا","لكم") -> لنا | B18: =احمد!C3 -> 9450 | C18: دينار | H18: قل بسم الله وأدخل أرقام الهاتف واضغط زر إرسال بشرط أن يكون الواتس والمتصفح مفتوحين
A19: 🔘🔘🔘🔘🔘🔘
B20: =TODAY() -> 2022-03-03
A22: باســـــــــــــــل
A23: 965777061985
A24: ===============
A25: =IF(B25>=0,"لنا","لكم") -> لنا | B25: =باسل!C3 -> 1459 | C25: دينار
A26: 🔘🔘🔘🔘🔘🔘
B27: =TODAY() -> 2022-03-03
